[Event "November 21 Late 2023"]
[Site "https://www.chess.com"]
[Date "2023.11.21"]
[Round "11"]
[White "Schnaider, Ilan"]
[Black "mind1mover"]
[Result "1-0"]
[Board "19"]
[TimeControl "180+1"]
[WhiteFideId "169013"]
[WhiteElo "2373"]
[BlackElo "2865"]
[WhiteTeam "ARG"]
[WhiteClock "0:00:50"]
[BlackClock "0:00:00"]

1. e4 {[%clk 0:03:00]}  Nc6 {[%clk 0:03:00]} 2. Nf3 {[%clk 0:02:58]}  d6 {[%clk 0:03:01]} 3. d4 {[%clk 0:02:58]}  Nf6 {[%clk 0:03:02]} 4. Nc3 {[%clk 0:02:54]}  g6 {[%clk 0:03:02]} 5. Bc4 {[%clk 0:02:50]}  Bg7 {[%clk 0:03:02]} 6. O-O {[%clk 0:02:47]}  O-O {[%clk 0:03:01]} 7. Bb3 {[%clk 0:02:47]}  Bg4 {[%clk 0:03:00]} 8. Be3 {[%clk 0:02:44]}  Nd7 {[%clk 0:02:59]} 9. h3 {[%clk 0:02:26]}  Bxf3 {[%clk 0:02:57]} 10. gxf3 {[%clk 0:02:27]}  e5 {[%clk 0:02:54]} 11. Ne2 {[%clk 0:02:19]}  Qh4 {[%clk 0:02:04]} 12. Kg2 {[%clk 0:02:11]}  Nxd4 {[%clk 0:02:01]} 13. Nxd4 {[%clk 0:02:10]}  exd4 {[%clk 0:02:01]} 14. Bxd4 {[%clk 0:02:11]}  Bxd4 {[%clk 0:01:46]} 15. Qxd4 {[%clk 0:02:10]}  Ne5 {[%clk 0:01:46]} 16. Qe3 {[%clk 0:02:06]}  g5 {[%clk 0:01:46]} 17. Rg1 {[%clk 0:02:00]}  Ng6 {[%clk 0:01:39]} 18. Kh2 {[%clk 0:01:55]}  h6 {[%clk 0:01:18]} 19. Rg4 {[%clk 0:01:55]}  Qh5 {[%clk 0:01:18]} 20. Rag1 {[%clk 0:01:55]}  Kh8 {[%clk 0:01:14]} 21. Qc3+ {[%clk 0:01:51]}  f6 {[%clk 0:00:50]} 22. Qxc7 {[%clk 0:01:43]}  Ne5 {[%clk 0:00:49]} 23. R1g3 {[%clk 0:01:28]}  Qg6 {[%clk 0:00:36]} 24. Qxd6 {[%clk 0:01:18]}  Rfd8 {[%clk 0:00:30]} 25. Qe7 {[%clk 0:01:16]}  Rd2 {[%clk 0:00:27]} 26. Kg2 {[%clk 0:01:13]}  Rad8 {[%clk 0:00:17]} 27. Bd5 {[%clk 0:01:10]}  Rc8 {[%clk 0:00:12]} 28. c3 {[%clk 0:01:08]}  Rxb2 {[%clk 0:00:09]} 29. Rf4 {[%clk 0:01:07]}  Rxf2+ {[%clk 0:00:04]} 30. Kg1 {[%clk 0:01:05]}  Qg7 {[%clk 0:00:03]} 31. Qe6 {[%clk 0:00:58]}  Rxc3 {[%clk 0:00:02]} 32. Rxf6 {[%clk 0:00:52]}  Rcxf3 {[%clk 0:00:00]} 33. Rxh6+ {[%clk 0:00:50]} 1-0

[Event "November 21 Late 2023"]
[Site "https://www.chess.com"]
[Date "2023.11.21"]
[Round "11"]
[White "Djokic, Mihailo"]
[Black "Pakleza, Zbigniew"]
[Result "1-0"]
[Board "20"]
[TimeControl "180+1"]
[WhiteFideId "976440"]
[BlackFideId "1119290"]
[WhiteElo "2265"]
[BlackElo "2410"]
[WhiteTeam "SRB"]
[BlackTeam "POL"]
[WhiteClock "0:00:16"]
[BlackClock "0:00:00"]

1. e4 {[%clk 0:03:00]}  d6 {[%clk 0:03:00]} 2. d4 {[%clk 0:03:01]}  Nf6 {[%clk 0:03:01]} 3. Nc3 {[%clk 0:03:01]}  c6 {[%clk 0:03:01]} 4. f4 {[%clk 0:03:01]}  Qb6 {[%clk 0:03:01]} 5. e5 {[%clk 0:03:02]}  Nd5 {[%clk 0:03:01]} 6. Nxd5 {[%clk 0:03:02]}  cxd5 {[%clk 0:03:02]} 7. Nf3 {[%clk 0:03:02]}  Bg4 {[%clk 0:02:58]} 8. Be2 {[%clk 0:03:02]}  Nc6 {[%clk 0:02:58]} 9. c3 {[%clk 0:03:02]}  e6 {[%clk 0:02:59]} 10. Qd2 {[%clk 0:02:26]}  Be7 {[%clk 0:02:55]} 11. Qe3 {[%clk 0:02:23]}  O-O-O {[%clk 0:02:51]} 12. O-O {[%clk 0:02:22]}  Kb8 {[%clk 0:02:47]} 13. b4 {[%clk 0:02:21]}  Rc8 {[%clk 0:02:45]} 14. Bd2 {[%clk 0:02:21]}  g6 {[%clk 0:02:42]} 15. a4 {[%clk 0:02:21]}  Bf5 {[%clk 0:02:38]} 16. a5 {[%clk 0:02:21]}  Qc7 {[%clk 0:02:33]} 17. Kh1 {[%clk 0:02:12]}  Be4 {[%clk 0:02:19]} 18. Ra2 {[%clk 0:02:09]}  Bf8 {[%clk 0:02:07]} 19. Rfa1 {[%clk 0:02:07]}  Ne7 {[%clk 0:02:04]} 20. Ng5 {[%clk 0:02:04]}  Nf5 {[%clk 0:02:02]} 21. Qf2 {[%clk 0:02:00]}  h6 {[%clk 0:01:55]} 22. Nxe4 {[%clk 0:01:48]}  dxe4 {[%clk 0:01:56]} 23. Ra3 {[%clk 0:01:27]}  h5 {[%clk 0:01:45]} 24. Rb3 {[%clk 0:01:12]}  d5 {[%clk 0:01:42]} 25. b5 {[%clk 0:01:03]}  Qd7 {[%clk 0:01:31]} 26. Rab1 {[%clk 0:00:58]}  h4 {[%clk 0:01:21]} 27. Kg1 {[%clk 0:00:58]}  Be7 {[%clk 0:01:12]} 28. Qf1 {[%clk 0:00:46]}  b6 {[%clk 0:00:28]} 29. axb6 {[%clk 0:00:44]}  axb6 {[%clk 0:00:29]} 30. Ra1 {[%clk 0:00:44]}  Kc7 {[%clk 0:00:21]} 31. Ra7+ {[%clk 0:00:41]}  Kd8 {[%clk 0:00:20]} 32. Rxd7+ {[%clk 0:00:42]}  Kxd7 {[%clk 0:00:21]} 33. Bg4 {[%clk 0:00:32]}  Rc4 {[%clk 0:00:19]} 34. Qa1 {[%clk 0:00:30]}  Bd8 {[%clk 0:00:14]} 35. Rb4 {[%clk 0:00:22]}  Rc8 {[%clk 0:00:12]} 36. Qa7+ {[%clk 0:00:21]}  Bc7 {[%clk 0:00:12]} 37. c4 {[%clk 0:00:21]}  dxc4 {[%clk 0:00:06]} 38. Rxc4 {[%clk 0:00:19]}  Ne7 {[%clk 0:00:07]} 39. Qb7 {[%clk 0:00:16]}  Nd5 {[%clk 0:00:00]} 40. Qxd5+ {[%clk 0:00:16]} 1-0

[Event "November 21 Late 2023"]
[Site "https://www.chess.com"]
[Date "2023.11.21"]
[Round "11"]
[White "Bazeev, German"]
[Black "Arabidze, Meri"]
[Result "0-1"]
[Board "21"]
[TimeControl "180+1"]
[WhiteFideId "24119350"]
[BlackFideId "13604040"]
[WhiteElo "2418"]
[BlackElo "2416"]
[WhiteTeam "RUS"]
[BlackTeam "GEO"]
[WhiteClock "0:00:50"]
[BlackClock "0:01:13"]

1. d4 {[%clk 0:03:00]}  d5 {[%clk 0:02:58]} 2. Nf3 {[%clk 0:03:01]}  Nf6 {[%clk 0:02:58]} 3. c4 {[%clk 0:03:02]}  e6 {[%clk 0:02:58]} 4. Nc3 {[%clk 0:03:02]}  Nbd7 {[%clk 0:02:58]} 5. cxd5 {[%clk 0:03:00]}  exd5 {[%clk 0:02:58]} 6. Bg5 {[%clk 0:03:01]}  c6 {[%clk 0:02:57]} 7. e3 {[%clk 0:03:01]}  Be7 {[%clk 0:02:57]} 8. Qc2 {[%clk 0:03:01]}  O-O {[%clk 0:02:56]} 9. Bd3 {[%clk 0:03:02]}  Re8 {[%clk 0:02:53]} 10. h3 {[%clk 0:03:00]}  h6 {[%clk 0:02:42]} 11. Bf4 {[%clk 0:03:00]}  Nf8 {[%clk 0:02:41]} 12. g4 {[%clk 0:02:59]}  Ne6 {[%clk 0:02:39]} 13. O-O-O {[%clk 0:02:35]}  c5 {[%clk 0:02:34]} 14. dxc5 {[%clk 0:02:26]}  Nxc5 {[%clk 0:02:30]} 15. Nd4 {[%clk 0:02:20]}  Bd7 {[%clk 0:02:03]} 16. Rhg1 {[%clk 0:02:01]}  Rc8 {[%clk 0:02:02]} 17. g5 {[%clk 0:01:55]}  hxg5 {[%clk 0:02:03]} 18. Rxg5 {[%clk 0:01:56]}  Nxd3+ {[%clk 0:01:47]} 19. Qxd3 {[%clk 0:01:47]}  Ne4 {[%clk 0:01:44]} 20. Rxg7+ {[%clk 0:00:52]}  Kxg7 {[%clk 0:01:41]} 21. Rg1+ {[%clk 0:00:53]}  Kh8 {[%clk 0:01:31]} 22. Be5+ {[%clk 0:00:52]}  Bf6 {[%clk 0:01:28]} 23. Qd1 {[%clk 0:00:53]}  Rxe5 {[%clk 0:01:13]} 24. f4 {[%clk 0:00:50]} 0-1

[Event "November 21 Late 2023"]
[Site "https://www.chess.com"]
[Date "2023.11.21"]
[Round "11"]
[White "Maksimovic, Bojan"]
[Black "Jakubowski, Krzysztof"]
[Result "0-1"]
[Board "22"]
[TimeControl "180+1"]
[WhiteFideId "14408120"]
[BlackFideId "1112848"]
[WhiteElo "2546"]
[BlackElo "2369"]
[WhiteTeam "BIH"]
[BlackTeam "POL"]
[WhiteClock "0:00:26"]
[BlackClock "0:00:25"]

1. a3 {[%clk 0:03:00]}  e5 {[%clk 0:02:56]} 2. e3 {[%clk 0:03:00]}  d6 {[%clk 0:02:55]} 3. d4 {[%clk 0:02:58]}  Nd7 {[%clk 0:02:55]} 4. Nf3 {[%clk 0:02:57]}  Ngf6 {[%clk 0:02:54]} 5. c4 {[%clk 0:02:55]}  g6 {[%clk 0:02:54]} 6. Nc3 {[%clk 0:02:55]}  Bg7 {[%clk 0:02:54]} 7. Be2 {[%clk 0:02:56]}  O-O {[%clk 0:02:54]} 8. Qc2 {[%clk 0:02:55]}  Re8 {[%clk 0:02:53]} 9. O-O {[%clk 0:02:55]}  e4 {[%clk 0:02:51]} 10. Nd2 {[%clk 0:02:46]}  Qe7 {[%clk 0:02:51]} 11. b4 {[%clk 0:02:44]}  h5 {[%clk 0:02:50]} 12. Bb2 {[%clk 0:02:44]}  h4 {[%clk 0:02:47]} 13. h3 {[%clk 0:02:42]}  Nf8 {[%clk 0:02:46]} 14. Nd5 {[%clk 0:02:39]}  Nxd5 {[%clk 0:02:45]} 15. cxd5 {[%clk 0:02:40]}  Bf5 {[%clk 0:02:41]} 16. Rfc1 {[%clk 0:02:37]}  Rac8 {[%clk 0:02:41]} 17. Qa4 {[%clk 0:02:33]}  a6 {[%clk 0:02:28]} 18. b5 {[%clk 0:02:33]}  axb5 {[%clk 0:02:28]} 19. Qxb5 {[%clk 0:02:30]}  b6 {[%clk 0:02:23]} 20. Rc2 {[%clk 0:02:29]}  Nh7 {[%clk 0:02:09]} 21. Rac1 {[%clk 0:02:26]}  Ng5 {[%clk 0:02:06]} 22. Bf1 {[%clk 0:02:19]}  Bf6 {[%clk 0:02:04]} 23. Rxc7 {[%clk 0:02:00]}  Rxc7 {[%clk 0:02:03]} 24. Rxc7 {[%clk 0:02:01]}  Qxc7 {[%clk 0:02:04]} 25. Qxe8+ {[%clk 0:01:59]}  Kg7 {[%clk 0:02:04]} 26. Qc6 {[%clk 0:01:59]}  Qa7 {[%clk 0:02:02]} 27. Nc4 {[%clk 0:01:51]}  Be7 {[%clk 0:01:54]} 28. Qxb6 {[%clk 0:01:25]}  Qa4 {[%clk 0:01:50]} 29. Qb4 {[%clk 0:01:25]}  Qd1 {[%clk 0:01:48]} 30. Qd2 {[%clk 0:01:26]}  Qb1 {[%clk 0:01:47]} 31. Qc1 {[%clk 0:01:26]}  Qa2 {[%clk 0:01:46]} 32. Qa1 {[%clk 0:01:25]}  Qb3 {[%clk 0:01:45]} 33. a4 {[%clk 0:01:26]}  Bxh3 {[%clk 0:01:07]} 34. gxh3 {[%clk 0:01:14]}  Bd8 {[%clk 0:00:58]} 35. a5 {[%clk 0:01:12]}  Nf3+ {[%clk 0:00:49]} 36. Kg2 {[%clk 0:01:10]}  Qb4 {[%clk 0:00:48]} 37. a6 {[%clk 0:00:59]}  Ne1+ {[%clk 0:00:47]} 38. Qxe1 {[%clk 0:01:00]}  Qxe1 {[%clk 0:00:46]} 39. a7 {[%clk 0:01:00]}  g5 {[%clk 0:00:34]} 40. a8=Q {[%clk 0:00:59]}  g4 {[%clk 0:00:34]} 41. Qxd8 {[%clk 0:00:35]}  gxh3+ {[%clk 0:00:33]} 42. Kg1 {[%clk 0:00:35]}  h2+ {[%clk 0:00:32]} 43. Kxh2 {[%clk 0:00:36]}  Qxf2+ {[%clk 0:00:31]} 44. Bg2 {[%clk 0:00:36]}  Qg3+ {[%clk 0:00:31]} 45. Kg1 {[%clk 0:00:26]}  h3 {[%clk 0:00:25]} 0-1

[Event "November 21 Late 2023"]
[Site "https://www.chess.com"]
[Date "2023.11.21"]
[Round "11"]
[White "Gubajdullin, Alexei"]
[Black "Troff, Kayden"]
[Result "1-0"]
[Board "23"]
[TimeControl "180+1"]
[WhiteFideId "4141202"]
[BlackFideId "2047896"]
[WhiteElo "2280"]
[BlackElo "2544"]
[WhiteTeam "RUS"]
[BlackTeam "USA"]
[WhiteClock "0:00:25"]
[BlackClock "0:00:03"]

1. d4 {[%clk 0:03:00]}  Nf6 {[%clk 0:02:59]} 2. Nf3 {[%clk 0:03:00]}  g6 {[%clk 0:02:59]} 3. Bf4 {[%clk 0:03:00]}  Bg7 {[%clk 0:03:00]} 4. e3 {[%clk 0:03:01]}  O-O {[%clk 0:03:00]} 5. Be2 {[%clk 0:03:01]}  d6 {[%clk 0:03:01]} 6. O-O {[%clk 0:03:02]}  Nc6 {[%clk 0:03:01]} 7. h3 {[%clk 0:03:02]}  Nd7 {[%clk 0:03:00]} 8. Bh2 {[%clk 0:03:02]}  e5 {[%clk 0:03:00]} 9. c4 {[%clk 0:03:02]}  exd4 {[%clk 0:03:01]} 10. exd4 {[%clk 0:03:03]}  Qf6 {[%clk 0:03:01]} 11. Nc3 {[%clk 0:03:03]}  Nxd4 {[%clk 0:03:01]} 12. Nxd4 {[%clk 0:03:03]}  Qxd4 {[%clk 0:03:01]} 13. Nd5 {[%clk 0:03:03]}  Qxd1 {[%clk 0:02:48]} 14. Rfxd1 {[%clk 0:03:02]}  Be5 {[%clk 0:02:46]} 15. Nxc7 {[%clk 0:03:01]}  Rb8 {[%clk 0:02:46]} 16. Rab1 {[%clk 0:02:42]}  Nb6 {[%clk 0:02:31]} 17. Bxe5 {[%clk 0:02:22]}  dxe5 {[%clk 0:02:31]} 18. c5 {[%clk 0:02:22]}  Na4 {[%clk 0:02:29]} 19. Rbc1 {[%clk 0:02:12]}  b6 {[%clk 0:02:09]} 20. c6 {[%clk 0:02:09]}  Nxb2 {[%clk 0:02:04]} 21. Rd2 {[%clk 0:01:57]}  Na4 {[%clk 0:02:04]} 22. Nb5 {[%clk 0:01:57]}  Nc5 {[%clk 0:01:47]} 23. Nxa7 {[%clk 0:01:50]}  Bf5 {[%clk 0:01:42]} 24. c7 {[%clk 0:01:43]}  Rb7 {[%clk 0:01:37]} 25. Nb5 {[%clk 0:01:37]}  Rc8 {[%clk 0:01:32]} 26. Rd8+ {[%clk 0:01:21]}  Kg7 {[%clk 0:01:31]} 27. Rxc8 {[%clk 0:01:17]}  Bxc8 {[%clk 0:01:32]} 28. Bc4 {[%clk 0:01:08]}  Kf6 {[%clk 0:00:18]} 29. Bd5 {[%clk 0:01:05]}  Ke7 {[%clk 0:00:18]} 30. Bxb7 {[%clk 0:01:02]}  Bxb7 {[%clk 0:00:19]} 31. Rd1 {[%clk 0:01:01]}  Ne6 {[%clk 0:00:19]} 32. Nd6 {[%clk 0:00:59]}  Nxc7 {[%clk 0:00:18]} 33. Nxb7 {[%clk 0:00:59]}  Nb5 {[%clk 0:00:18]} 34. Rb1 {[%clk 0:00:52]}  Nc3 {[%clk 0:00:17]} 35. Rxb6 {[%clk 0:00:51]}  Nxa2 {[%clk 0:00:17]} 36. Rc6 {[%clk 0:00:46]}  Nb4 {[%clk 0:00:16]} 37. Rc7+ {[%clk 0:00:46]}  Ke6 {[%clk 0:00:13]} 38. Nd8+ {[%clk 0:00:46]}  Kd6 {[%clk 0:00:13]} 39. Rxf7 {[%clk 0:00:45]}  h5 {[%clk 0:00:13]} 40. Rg7 {[%clk 0:00:45]}  Nd3 {[%clk 0:00:13]} 41. Rxg6+ {[%clk 0:00:45]}  Ke7 {[%clk 0:00:13]} 42. Nc6+ {[%clk 0:00:45]}  Kf7 {[%clk 0:00:14]} 43. Rh6 {[%clk 0:00:42]}  e4 {[%clk 0:00:09]} 44. Rxh5 {[%clk 0:00:42]}  Kf6 {[%clk 0:00:10]} 45. Ra5 {[%clk 0:00:39]}  Nf4 {[%clk 0:00:10]} 46. h4 {[%clk 0:00:36]}  Ne2+ {[%clk 0:00:09]} 47. Kf1 {[%clk 0:00:35]}  Nf4 {[%clk 0:00:10]} 48. h5 {[%clk 0:00:34]}  Kg7 {[%clk 0:00:10]} 49. Re5 {[%clk 0:00:32]}  Kf6 {[%clk 0:00:08]} 50. Rxe4 {[%clk 0:00:31]}  Nxh5 {[%clk 0:00:08]} 51. g4 {[%clk 0:00:30]}  Ng7 {[%clk 0:00:08]} 52. f4 {[%clk 0:00:30]}  Kf7 {[%clk 0:00:06]} 53. Ne5+ {[%clk 0:00:29]}  Ke6 {[%clk 0:00:06]} 54. Nf3+ {[%clk 0:00:29]}  Kf6 {[%clk 0:00:06]} 55. Nd4 {[%clk 0:00:29]}  Kf7 {[%clk 0:00:05]} 56. f5 {[%clk 0:00:29]}  Kf6 {[%clk 0:00:05]} 57. Kf2 {[%clk 0:00:29]}  Kg5 {[%clk 0:00:06]} 58. Kg3 {[%clk 0:00:29]}  Kf6 {[%clk 0:00:06]} 59. Kf4 {[%clk 0:00:29]}  Kf7 {[%clk 0:00:06]} 60. g5 {[%clk 0:00:28]}  Nh5+ {[%clk 0:00:07]} 61. Ke5 {[%clk 0:00:28]}  Ng7 {[%clk 0:00:08]} 62. Rh4 {[%clk 0:00:28]}  Ne8 {[%clk 0:00:08]} 63. g6+ {[%clk 0:00:28]}  Kg8 {[%clk 0:00:08]} 64. f6 {[%clk 0:00:26]}  Ng7 {[%clk 0:00:03]} 65. f7+ {[%clk 0:00:25]} 1-0

[Event "November 21 Late 2023"]
[Site "https://www.chess.com"]
[Date "2023.11.21"]
[Round "11"]
[White "Bilan, Danila"]
[Black "Olsen, Filip Boe"]
[Result "1-0"]
[Board "29"]
[TimeControl "180+1"]
[WhiteFideId "24161918"]
[BlackFideId "1440640"]
[WhiteElo "2146"]
[BlackElo "2322"]
[WhiteTeam "RUS"]
[BlackTeam "DEN"]
[WhiteClock "0:00:05"]
[BlackClock "0:01:19"]

1. d4 {[%clk 0:03:00]}  d5 {[%clk 0:02:57]} 2. Nf3 {[%clk 0:03:00]}  Nf6 {[%clk 0:02:57]} 3. c4 {[%clk 0:03:00]}  c6 {[%clk 0:02:57]} 4. Nc3 {[%clk 0:03:00]}  e6 {[%clk 0:02:56]} 5. Bg5 {[%clk 0:03:00]}  Be7 {[%clk 0:02:54]} 6. e3 {[%clk 0:03:00]}  O-O {[%clk 0:02:55]} 7. Bd3 {[%clk 0:03:00]}  Nbd7 {[%clk 0:02:55]} 8. O-O {[%clk 0:02:59]}  dxc4 {[%clk 0:02:55]} 9. Bxc4 {[%clk 0:02:59]}  b5 {[%clk 0:02:56]} 10. Bd3 {[%clk 0:02:49]}  h6 {[%clk 0:02:51]} 11. Bh4 {[%clk 0:02:48]}  Bb7 {[%clk 0:02:52]} 12. Rc1 {[%clk 0:02:47]}  a6 {[%clk 0:02:51]} 13. Bb1 {[%clk 0:02:47]}  c5 {[%clk 0:02:49]} 14. Ne5 {[%clk 0:02:35]}  cxd4 {[%clk 0:02:38]} 15. exd4 {[%clk 0:02:36]}  Nxe5 {[%clk 0:02:27]} 16. dxe5 {[%clk 0:02:36]}  Nd5 {[%clk 0:02:20]} 17. Bxe7 {[%clk 0:02:05]}  Qxe7 {[%clk 0:02:20]} 18. Ne4 {[%clk 0:01:43]}  Rac8 {[%clk 0:02:07]} 19. Qd4 {[%clk 0:00:54]}  Nf4 {[%clk 0:02:00]} 20. Qe3 {[%clk 0:00:40]}  Qh4 {[%clk 0:01:59]} 21. g3 {[%clk 0:00:20]}  Nh3+ {[%clk 0:01:57]} 22. Kg2 {[%clk 0:00:20]}  Qh5 {[%clk 0:01:57]} 23. f3 {[%clk 0:00:13]}  Ng5 {[%clk 0:01:54]} 24. Nxg5 {[%clk 0:00:07]}  hxg5 {[%clk 0:01:54]} 25. Rxc8 {[%clk 0:00:06]}  Rxc8 {[%clk 0:01:53]} 26. Be4 {[%clk 0:00:05]}  g4 {[%clk 0:01:35]} 27. Bxb7 {[%clk 0:00:04]}  Rc2+ {[%clk 0:01:33]} 28. Rf2 {[%clk 0:00:04]}  Qh3+ {[%clk 0:01:30]} 29. Kg1 {[%clk 0:00:02]}  Rc7 {[%clk 0:01:30]} 30. Be4 {[%clk 0:00:02]}  gxf3 {[%clk 0:01:31]} 31. Bxf3 {[%clk 0:00:02]}  Qf5 {[%clk 0:01:30]} 32. Bg2 {[%clk 0:00:02]}  Qb1+ {[%clk 0:01:30]} 33. Bf1 {[%clk 0:00:03]}  Qxa2 {[%clk 0:01:30]} 34. Qb6 {[%clk 0:00:03]}  Rc8 {[%clk 0:01:23]} 35. Qb7 {[%clk 0:00:03]}  Rf8 {[%clk 0:01:23]} 36. Kg2 {[%clk 0:00:02]}  Qd5+ {[%clk 0:01:21]} 37. Qxd5 {[%clk 0:00:02]}  exd5 {[%clk 0:01:22]} 38. Rd2 {[%clk 0:00:02]}  Rd8 {[%clk 0:01:22]} 39. Kf3 {[%clk 0:00:03]}  Kf8 {[%clk 0:01:23]} 40. Kf4 {[%clk 0:00:03]}  Ke7 {[%clk 0:01:24]} 41. Bg2 {[%clk 0:00:03]}  d4 {[%clk 0:01:24]} 42. Be4 {[%clk 0:00:03]}  a5 {[%clk 0:01:25]} 43. Bd3 {[%clk 0:00:04]}  a4 {[%clk 0:01:25]} 44. Bxb5 {[%clk 0:00:04]}  Rb8 {[%clk 0:01:26]} 45. Bxa4 {[%clk 0:00:04]}  d3 {[%clk 0:01:26]} 46. Bc6 {[%clk 0:00:03]}  Rb4+ {[%clk 0:01:25]} 47. Be4 {[%clk 0:00:03]}  f6 {[%clk 0:01:25]} 48. exf6+ {[%clk 0:00:03]}  Kxf6 {[%clk 0:01:26]} 49. h4 {[%clk 0:00:04]}  Rb5 {[%clk 0:01:16]} 50. g4 {[%clk 0:00:04]}  g5+ {[%clk 0:01:16]} 51. hxg5+ {[%clk 0:00:05]}  Rxg5 {[%clk 0:01:17]} 52. Rxd3 {[%clk 0:00:05]}  Rb5 {[%clk 0:01:18]} 53. Rd6+ {[%clk 0:00:05]}  Kg7 {[%clk 0:01:18]} 54. Rd2 {[%clk 0:00:06]}  Kf7 {[%clk 0:01:19]} 55. g5 {[%clk 0:00:06]}  Rc5 {[%clk 0:01:19]} 56. b4 {[%clk 0:00:06]}  Rb5 {[%clk 0:01:20]} 57. Rd4 {[%clk 0:00:06]}  Kg7 {[%clk 0:01:20]} 58. Rd7+ {[%clk 0:00:06]}  Kf8 {[%clk 0:01:19]} 59. g6 {[%clk 0:00:05]} 1-0

[Event "November 21 Late 2023"]
[Site "https://www.chess.com"]
[Date "2023.11.21"]
[Round "11"]
[White "Manukyan, Sargis A."]
[Black "Mazurkiewicz, Michal"]
[Result "1-0"]
[Board "31"]
[TimeControl "180+1"]
[WhiteFideId "13303970"]
[BlackFideId "1124943"]
[WhiteElo "2204"]
[BlackElo "2124"]
[WhiteTeam "ARM"]
[BlackTeam "POL"]
[WhiteClock "0:02:20"]
[BlackClock "0:00:20"]

1. d4 {[%clk 0:03:00]}  Nf6 {[%clk 0:02:59]} 2. c4 {[%clk 0:03:01]}  e5 {[%clk 0:02:59]} 3. dxe5 {[%clk 0:03:01]}  Ng4 {[%clk 0:03:00]} 4. Nf3 {[%clk 0:03:02]}  Bc5 {[%clk 0:03:00]} 5. e3 {[%clk 0:03:03]}  Nc6 {[%clk 0:03:00]} 6. Be2 {[%clk 0:03:03]}  O-O {[%clk 0:03:00]} 7. O-O {[%clk 0:03:04]}  Re8 {[%clk 0:03:00]} 8. Nc3 {[%clk 0:03:04]}  a5 {[%clk 0:03:01]} 9. b3 {[%clk 0:03:05]}  Ncxe5 {[%clk 0:03:01]} 10. Nxe5 {[%clk 0:03:05]}  Nxe5 {[%clk 0:03:02]} 11. Bb2 {[%clk 0:03:05]}  Ra6 {[%clk 0:03:02]} 12. Ne4 {[%clk 0:03:06]}  Ba7 {[%clk 0:03:02]} 13. c5 {[%clk 0:03:05]}  Rh6 {[%clk 0:03:00]} 14. f4 {[%clk 0:03:04]}  Qh4 {[%clk 0:02:49]} 15. h3 {[%clk 0:02:52]}  Ng6 {[%clk 0:02:38]} 16. Qd4 {[%clk 0:02:50]}  f6 {[%clk 0:02:33]} 17. Bc4+ {[%clk 0:02:49]}  Kh8 {[%clk 0:02:32]} 18. Nxf6 {[%clk 0:02:48]}  Bxc5 {[%clk 0:01:29]} 19. Qxc5 {[%clk 0:02:29]}  gxf6 {[%clk 0:01:29]} 20. Qg5 {[%clk 0:02:28]}  Rf8 {[%clk 0:01:05]} 21. g3 {[%clk 0:02:28]}  Qxg5 {[%clk 0:00:52]} 22. fxg5 {[%clk 0:02:28]}  Rxh3 {[%clk 0:00:52]} 23. Rxf6 {[%clk 0:02:28]}  Kg7 {[%clk 0:00:21]} 24. Rf7+ {[%clk 0:02:18]}  Kg8 {[%clk 0:00:19]} 25. Rg7+ {[%clk 0:02:19]}  Kh8 {[%clk 0:00:20]} 26. Rg8# {[%clk 0:02:20]} 1-0

[Event "November 21 Late 2023"]
[Site "https://www.chess.com"]
[Date "2023.11.21"]
[Round "11"]
[White "Statham_l3"]
[Black "BM223344"]
[Result "1-0"]
[Board "32"]
[TimeControl "180+1"]
[WhiteElo "2599"]
[BlackElo "2498"]
[WhiteClock "0:00:08"]
[BlackClock "0:02:02"]

1. e4 {[%clk 0:02:55]}  e6 {[%clk 0:02:57]} 2. d4 {[%clk 0:02:55]}  d5 {[%clk 0:02:55]} 3. Nc3 {[%clk 0:02:55]}  Nf6 {[%clk 0:02:55]} 4. e5 {[%clk 0:02:55]}  Nfd7 {[%clk 0:02:56]} 5. f4 {[%clk 0:02:55]}  c5 {[%clk 0:02:56]} 6. Nf3 {[%clk 0:02:55]}  Nc6 {[%clk 0:02:57]} 7. Be3 {[%clk 0:02:54]}  a6 {[%clk 0:02:58]} 8. Qd2 {[%clk 0:02:48]}  b5 {[%clk 0:02:58]} 9. dxc5 {[%clk 0:02:39]}  Bxc5 {[%clk 0:02:59]} 10. O-O-O {[%clk 0:02:37]}  Qb6 {[%clk 0:02:58]} 11. Bxc5 {[%clk 0:02:36]}  Nxc5 {[%clk 0:02:58]} 12. Nd4 {[%clk 0:02:24]}  Ne4 {[%clk 0:02:51]} 13. Nxe4 {[%clk 0:02:21]}  dxe4 {[%clk 0:02:39]} 14. Nxc6 {[%clk 0:02:19]}  O-O {[%clk 0:02:39]} 15. Ne7+ {[%clk 0:01:57]}  Kh8 {[%clk 0:02:39]} 16. Nxc8 {[%clk 0:01:41]}  Rfxc8 {[%clk 0:02:39]} 17. Kb1 {[%clk 0:01:41]}  Rd8 {[%clk 0:02:33]} 18. Qe1 {[%clk 0:01:36]}  Rxd1+ {[%clk 0:02:31]} 19. Qxd1 {[%clk 0:01:36]}  Qe3 {[%clk 0:02:28]} 20. g3 {[%clk 0:01:26]}  g6 {[%clk 0:02:23]} 21. Bg2 {[%clk 0:01:20]}  Rc8 {[%clk 0:02:22]} 22. Re1 {[%clk 0:01:17]}  Qf2 {[%clk 0:02:23]} 23. Qe2 {[%clk 0:01:17]}  Qd4 {[%clk 0:02:20]} 24. Bxe4 {[%clk 0:01:11]}  Rd8 {[%clk 0:02:19]} 25. Bd3 {[%clk 0:01:10]}  Kg7 {[%clk 0:02:20]} 26. h4 {[%clk 0:01:09]}  h5 {[%clk 0:02:20]} 27. Qe4 {[%clk 0:01:05]}  Qf2 {[%clk 0:02:19]} 28. Qe3 {[%clk 0:01:04]}  Qh2 {[%clk 0:02:16]} 29. a3 {[%clk 0:01:00]}  a5 {[%clk 0:02:10]} 30. Qb6 {[%clk 0:00:56]}  Rd5 {[%clk 0:02:05]} 31. Qe3 {[%clk 0:00:47]}  b4 {[%clk 0:02:03]} 32. axb4 {[%clk 0:00:46]}  axb4 {[%clk 0:02:04]} 33. Qg1 {[%clk 0:00:23]}  Qh3 {[%clk 0:01:59]} 34. Qf2 {[%clk 0:00:13]}  b3 {[%clk 0:01:57]} 35. Be4 {[%clk 0:00:09]}  bxc2+ {[%clk 0:01:58]} 36. Kxc2 {[%clk 0:00:09]}  Rd7 {[%clk 0:01:57]} 37. Rh1 {[%clk 0:00:08]}  Qg4 {[%clk 0:01:57]} 38. Qf3 {[%clk 0:00:08]}  Rc7+ {[%clk 0:01:56]} 39. Kd2 {[%clk 0:00:07]}  Rd7+ {[%clk 0:01:56]} 40. Kc3 {[%clk 0:00:07]}  Rc7+ {[%clk 0:01:56]} 41. Kd4 {[%clk 0:00:07]}  Qxf3 {[%clk 0:01:56]} 42. Bxf3 {[%clk 0:00:07]}  Rc2 {[%clk 0:01:57]} 43. b4 {[%clk 0:00:06]}  Rb2 {[%clk 0:01:57]} 44. Kc5 {[%clk 0:00:06]}  Rb3 {[%clk 0:01:57]} 45. Rf1 {[%clk 0:00:05]}  f6 {[%clk 0:01:58]} 46. b5 {[%clk 0:00:04]}  fxe5 {[%clk 0:01:57]} 47. fxe5 {[%clk 0:00:05]}  Re3 {[%clk 0:01:57]} 48. Kd6 {[%clk 0:00:05]}  Rb3 {[%clk 0:01:58]} 49. Bc6 {[%clk 0:00:05]}  Rxg3 {[%clk 0:01:57]} 50. Kxe6 {[%clk 0:00:05]}  Rg4 {[%clk 0:01:57]} 51. b6 {[%clk 0:00:05]}  Rxh4 {[%clk 0:01:58]} 52. b7 {[%clk 0:00:05]}  Rb4 {[%clk 0:01:58]} 53. Rf7+ {[%clk 0:00:06]}  Kh6 {[%clk 0:01:59]} 54. Rf6 {[%clk 0:00:06]}  Kg5 {[%clk 0:01:57]} 55. Rf3 {[%clk 0:00:05]}  h4 {[%clk 0:01:57]} 56. Kd6 {[%clk 0:00:03]}  Kg4 {[%clk 0:01:57]} 57. Re3 {[%clk 0:00:02]}  h3 {[%clk 0:01:58]} 58. Re4+ {[%clk 0:00:03]}  Rxe4 {[%clk 0:01:58]} 59. Bxe4 {[%clk 0:00:04]}  Kf4 {[%clk 0:01:59]} 60. b8=Q {[%clk 0:00:04]}  Kxe4 {[%clk 0:01:59]} 61. Qb7+ {[%clk 0:00:05]}  Kf4 {[%clk 0:02:00]} 62. Qh1 {[%clk 0:00:06]}  Kg3 {[%clk 0:02:00]} 63. e6 {[%clk 0:00:06]}  g5 {[%clk 0:02:00]} 64. e7 {[%clk 0:00:07]}  g4 {[%clk 0:02:01]} 65. e8=Q {[%clk 0:00:08]}  Kf2 {[%clk 0:02:02]} 66. Qee1# {[%clk 0:00:08]} 1-0